bitfinex-derivatives/quotes_SOLF0:USTF0_20260306
["timestamp","ask_amount","ask_price","bid_price","bid_amount"]
[1772806102680,20.35491077,85.48,85.401,17.60128322]
[1772806102881,20.35491077,85.478,85.401,17.60128322]
[1772806103380,20.35491077,85.478,85.421,17.59647628]
[1772806103580,20.35491077,85.5,85.421,17.59647628]
[1772806103778,20.35491077,85.495,85.445,10.533]
[1772806105183,20.35491077,85.495,85.451,10.532]
[1772806106287,20.35491077,85.495,85.438,17.58285652]
[1772806106288,258.02604063,85.502,85.454,17.72615665]
[1772806106686,258.02604063,85.502,85.44,8.95650123]
[1772806106886,20.35491077,85.501,85.456,10.532]
[1772806107977,20.35491077,85.501,85.44,8.95650123]
[1772806107978,20.35491077,85.497,85.417,17.71778614]
[1772806109287,20.35491077,85.47,85.4,26.58052182]
[1772806109588,20.35491077,85.47,85.4,17.62402059]
[1772806109984,20.35491077,85.47,85.403,10.538]
[1772806110187,20.35491077,85.47,85.38,8.95650123]
[1772806110188,20.35491077,85.47,85.404,17.62402059]
[1772806110584,20.35491077,85.47,85.409,17.61950909]
[1772806111283,20.35491077,85.494,85.422,17.61454115]
[1772806111885,20.35491077,85.494,85.422,39.2997228]
[1772806112083,20.35491077,85.494,85.422,17.61454115]
[1772806112790,10.528,85.488,85.425,10.535]
[1772806113090,21.78210982,85.487,85.425,10.535]
[1772806113785,21.78210982,85.484,85.425,10.535]
[1772806114285,21.78210982,85.484,85.405,17.41573285]
[1772806114588,10.531,85.465,85.406,17.41087137]
[1772806115491,21.78210982,85.456,85.384,21.68518165]
[1772806115687,21.78210982,85.456,85.379,21.68518165]
[1772806116393,21.78210982,85.456,85.378,21.68518165]
[1772806116785,21.78210982,85.437,85.378,21.68518165]
[1772806116985,21.78210982,85.437,85.362,208.78518165]
[1772806117185,21.78210982,85.437,85.362,187.1]
[1772806117790,21.78210982,85.427,85.363,10.543]
[1772806118194,21.78210982,85.427,85.362,187.1]
[1772806118790,21.78210982,85.427,85.354,17.6574115]
[1772806119487,21.78210982,85.396,85.337,10.546]
[1772806120795,10.539,85.395,85.337,10.546]
[1772806122197,21.78210982,85.396,85.321,194.42970707]
[1772806122198,21.78210982,85.396,85.343,10.546]
[1772806122390,21.78210982,85.431,85.344,17.72469173]
[1772806122791,10.535,85.429,85.371,17.72469173]
[1772806123188,21.78210982,85.469,85.371,17.72469173]
[1772806123388,21.78210982,85.446,85.388,17.65413771]
[1772806124198,10.532,85.457,85.399,10.539]
[1772806124492,21.78210982,85.466,85.388,17.65413771]
[1772806124795,21.78210982,85.447,85.348,21.68518165]
[1772806125003,21.78210982,85.447,85.351,17.6494141]
[1772806125187,21.78210982,85.425,85.367,10.543]
[1772806125395,21.78210982,85.425,85.326,21.096]
[1772806125396,21.78210982,85.419,85.333,17.53807251]
[1772806126507,10.541,85.382,85.333,28.08507251]
[1772806126702,21.78210982,85.393,85.333,17.53807251]
[1772806126902,21.78210982,85.393,85.321,211.96359127]
[1772806127105,21.78210982,85.379,85.304,17.5338842]
[1772806127299,8.95650123,85.35,85.262,17.53003051]
[1772806127499,21.78210982,85.347,85.276,10.554]
[1772806127704,21.78210982,85.347,85.262,17.53003051]
[1772806128104,21.78210982,85.347,85.276,17.3486112]
[1772806128806,21.78210982,85.354,85.261,17.34487664]
[1772806129310,21.78210982,85.351,85.276,17.34487664]
[1772806129807,21.78210982,85.351,85.281,17.45077595]
[1772806130405,21.78210982,85.376,85.301,17.44670641]
[1772806130709,21.78210982,85.394,85.321,17.44670641]
[1772806130912,21.78210982,85.394,85.323,17.44670641]
[1772806131406,21.78210982,85.392,85.323,17.44670641]
[1772806131911,21.78210982,85.419,85.341,17.20820092]
[1772806132105,21.78210982,85.405,85.318,17.20820092]
[1772806132511,21.78210982,85.399,85.291,17.20399376]
[1772806132706,21.78210982,85.384,85.296,17.20399376]
[1772806132906,21.78210982,85.384,85.311,17.20399376]
[1772806133411,21.78210982,85.384,85.26,8.95650123]
[1772806133412,21.78210982,85.408,85.331,16.5702791]
[1772806134206,21.78210982,85.408,85.344,10.546]
[1772806134408,21.78210982,85.408,85.276,16.56611928]
[1772806134604,21.78210982,85.408,85.311,16.51767207]
[1772806134810,21.13392562,85.4,85.311,16.51767207]
[1772806135610,21.13392562,85.394,85.315,16.30724938]
[1772806135812,21.13392562,85.394,85.33,8.95650123]
[1772806136407,21.13392562,85.394,85.331,10.547]
[1772806136609,21.13392562,85.394,85.33,8.95650123]
[1772806136813,21.13392562,85.394,85.315,16.30724938]
[1772806137213,21.13392562,85.392,85.315,16.30724938]
[1772806137605,21.13392562,85.376,85.296,16.23365357]
[1772806138716,21.13392562,85.409,85.311,16.23037494]
[1772806138911,8.95650123,85.4,85.293,16.23037494]
[1772806139108,8.95650123,85.4,85.307,10.55]
[1772806139109,10.542,85.37,85.307,10.55]
[1772806139310,21.13392562,85.371,85.31,8.95650123]
[1772806139510,21.13392562,85.371,85.311,16.1495066]
[1772806139714,21.13392562,85.371,85.313,10.549]
[1772806140317,21.13392562,85.371,85.322,10.548]
[1772806140516,21.13392562,85.371,85.311,16.1495066]
[1772806140517,31.67392562,85.39,85.323,16.14633272]
[1772806140821,21.13392562,85.389,85.323,16.14633272]
[1772806141017,21.13392562,85.389,85.332,10.547]
[1772806141219,21.13392562,85.386,85.31,8.95650123]
[1772806141416,21.13392562,85.386,85.311,16.57189944]
[1772806143120,20.88409431,85.365,85.305,10.55]
[1772806143417,20.88409431,85.365,85.292,16.57195033]
[1772806144021,20.88409431,85.365,85.303,10.551]
[1772806144616,20.88409431,85.363,85.294,10.552]
[1772806144816,20.88409431,85.363,85.271,16.64300518]
[1772806145617,20.88409431,85.348,85.271,16.64300518]
[1772806145812,20.88409431,85.348,85.291,16.75881104]
[1772806146018,20.88409431,85.379,85.291,16.75881104]
[1772806146224,20.88409431,85.365,85.309,10.55]
[1772806146624,20.88409431,85.365,85.291,16.75881104]
[1772806146821,20.88409431,85.365,85.316,10.549]
[1772806147223,20.88409431,85.354,85.298,10.551]
[1772806147525,20.88409431,85.354,85.271,16.75017075]
[1772806147721,10.546,85.344,85.282,10.553]
[1772806147925,20.88409431,85.343,85.271,16.75017075]
[1772806149332,20.88409431,85.343,85.298,10.551]
[1772806149828,20.88409431,85.331,85.253,16.62335962]
[1772806150031,20.88409431,85.329,85.23,8.98402229]
[1772806150230,20.88409431,85.329,85.231,16.62335962]
[1772806150627,20.88409431,85.301,85.231,16.62335962]
[1772806151232,20.88409431,85.29,85.231,16.62335962]
[1772806151425,20.88409431,85.29,85.22,8.98402229]
[1772806151728,20.88409431,85.29,85.17,21.135]
[1772806151729,20.88409431,85.289,85.2,8.98402229]
[1772806151936,8.98402229,85.33,85.154,16.61823469]
[1772806151937,8.98402229,85.26,85.154,16.61823469]
[1772806152136,20.88409431,85.259,85.171,16.61823469]
[1772806152429,20.88409431,85.258,85.171,16.61823469]
[1772806153028,20.88409431,85.258,85.19,8.98402229]
[1772806153334,20.88409431,85.278,85.211,16.6154472]
[1772806153527,20.88409431,85.246,85.17,26.03317474]
[1772806153732,20.88409431,85.246,85.171,17.04915245]
[1772806154133,20.88409431,85.279,85.191,17.04915245]
[1772806154336,20.88409431,85.279,85.211,17.0467742]
[1772806154728,20.88409431,85.279,85.226,10.56]
[1772806155332,20.88409431,85.279,85.211,17.0467742]
[1772806155633,20.88409431,85.279,85.191,17.90231358]
[1772806156034,20.88409431,85.275,85.211,17.90231358]
[1772806156435,20.88409431,85.275,85.224,10.56]
[1772806156736,20.88409431,85.275,85.211,17.90231358]
[1772806157232,20.88409431,85.308,85.25,8.98402229]
[1772806157431,20.88409431,85.308,85.211,17.89715834]
[1772806157638,20.88409431,85.284,85.212,10.562]
[1772806158031,20.88409431,85.284,85.2,8.98402229]
[1772806158431,20.88409431,85.284,85.201,17.86326204]
[1772806159136,31.43709431,85.284,85.209,10.562]
[1772806159435,20.88409431,85.283,85.201,17.86326204]
[1772806159734,8.98402229,85.3,85.201,17.86326204]
[1772806159735,20.88409431,85.271,85.202,10.563]
[1772806160534,20.88409431,85.271,85.211,10.562]
[1772806160730,20.88409431,85.269,85.2,8.98402229]
[1772806160931,20.88409431,85.269,85.182,17.552713]
[1772806161139,20.88409431,85.259,85.162,17.552713]
[1772806161434,20.88409431,85.213,85.131,17.71735112]
[1772806161738,20.88409431,85.213,85.13,8.98402229]
[1772806161739,20.88409431,85.213,85.151,17.71735112]
[1772806162235,20.88409431,85.213,85.143,10.57]
[1772806164233,20.88409431,85.21,85.14,8.98402229]
[1772806164832,20.88409431,85.209,85.141,10.571]
[1772806165134,20.88409431,85.209,85.14,8.98402229]
[1772806165336,20.88409431,85.209,85.15,10.57]
[1772806165635,20.88409431,85.209,85.14,8.98402229]
[1772806165838,20.88409431,85.209,85.157,10.569]
[1772806166440,20.88409431,85.209,85.146,10.57]
[1772806166835,20.88409431,85.209,85.122,17.5428504]
[1772806167341,20.88409431,85.197,85.127,10.572]
[1772806168038,20.88409431,85.197,85.137,10.571]
[1772806168741,20.88409431,85.197,85.12,8.98402229]
[1772806168742,20.88409431,85.194,85.102,17.59344179]
[1772806169242,20.88409431,85.191,85.12,8.98402229]
[1772806169640,20.88409431,85.188,85.122,10.573]
[1772806169840,20.88409431,85.188,85.102,17.59344179]
[1772806170036,20.88409431,85.188,85.111,17.63633521]
[1772806170233,20.88409431,85.183,85.118,10.573]
[1772806170632,20.88409431,85.183,85.111,17.63633521]
[1772806170839,20.88409431,85.183,85.127,10.572]
[1772806171239,20.88409431,85.183,85.111,17.63633521]
[1772806171439,20.88409431,85.181,85.116,10.574]
[1772806171837,20.88409431,85.181,85.092,18.29138664]
[1772806172140,20.88409431,85.181,85.111,18.29138664]
[1772806172643,20.88409431,85.181,85.092,18.29076838]
[1772806172842,21.47131716,85.17,85.092,18.29076838]
[1772806173042,21.47131716,85.17,85.1,10.576]
[1772806173242,21.47131716,85.17,85.092,18.29076838]
[1772806173743,21.47131716,85.169,85.098,10.576]
[1772806174140,2.0,85.254,85.111,18.21476914]
[1772806174141,21.47131716,85.219,85.111,18.21476914]
[1772806174445,21.47131716,85.208,85.131,18.21198127]
[1772806174938,21.47131716,85.208,85.15,8.98402229]
[1772806175140,21.47131716,85.208,85.111,18.21198127]
[1772806175347,21.47131716,85.208,85.13,8.98402229]
[1772806175541,21.47131716,85.208,85.131,18.25775413]
[1772806175842,21.47131716,85.218,85.13,27.24177642]
[1772806176140,2.0,85.315,85.162,10.568]
[1772806176141,10.561,85.217,85.162,10.568]
[1772806176340,21.47131716,85.216,85.162,10.568]
[1772806176745,21.47131716,85.216,85.15,8.98402229]
[1772806176941,21.47131716,85.214,85.15,8.98402229]
[1772806177545,10.564,85.198,85.144,10.57]
[1772806177749,21.47131716,85.197,85.131,18.25775413]
[1772806178145,21.47131716,85.197,85.16,10.568]
[1772806178346,21.47131716,85.197,85.131,18.25775413]
[1772806178746,32.03231716,85.219,85.158,10.569]
[1772806178948,21.47131716,85.219,85.151,18.27624501]
[1772806179646,21.47131716,85.217,85.151,18.27624501]
[1772806180147,21.47131716,85.217,85.18,10.566]
[1772806180348,21.47131716,85.235,85.18,10.566]
[1772806181044,21.47131716,85.235,85.19,10.565]
[1772806181247,21.47131716,85.269,85.191,17.66973868]
[1772806181550,21.47131716,85.269,85.21,8.98402229]
[1772806181944,21.47131716,85.308,85.23,8.98402229]
[1772806182153,8.98402229,85.33,85.211,17.29978722]
[1772806182154,21.47131716,85.29,85.231,10.559]
[1772806182446,21.47131716,85.29,85.23,8.98402229]
[1772806183058,21.47131716,85.289,85.21,8.98402229]
[1772806183351,21.47131716,85.289,85.23,8.98402229]
[1772806183552,21.47131716,85.289,85.227,10.56]
[1772806183747,21.47131716,85.289,85.2,8.98402229]
[1772806184140,21.47131716,85.259,85.203,10.563]
[1772806184343,21.47131716,85.259,85.2,8.98402229]
[1772806185143,21.47131716,85.259,85.21,10.562]
[1772806185447,21.47131716,85.259,85.2,8.98402229]
[1772806185647,21.47131716,85.259,85.187,17.168531]
[1772806185950,21.47131716,85.257,85.191,10.564]
[1772806186645,21.47131716,85.257,85.2,10.563]
[1772806187042,21.47131716,85.257,85.209,10.562]
[1772806187243,21.095,85.329,85.211,15.53824149]
[1772806187244,21.47131716,85.276,85.211,15.53824149]
[1772806187447,21.47131716,85.308,85.23,8.98402229]
[1772806187654,21.47131716,85.304,85.231,10.56]
[1772806188162,8.98402229,85.24,85.117,19.86168588]
[1772806188452,21.47131716,85.239,85.131,19.86168588]
[1772806188752,21.47131716,85.224,85.138,19.86168588]
[1772806189251,164.104,85.316,85.05,8.98402229]
[1772806189252,21.47131716,85.195,85.117,19.86168588]
[1772806189754,32.03631716,85.188,85.117,19.86168588]
[1772806189955,21.47131716,85.187,85.117,19.86168588]
[1772806190852,10.565,85.186,85.117,19.86168588]
[1772806191356,32.03631716,85.186,85.117,19.86168588]
[1772806191751,10.566,85.18,85.117,19.86168588]
[1772806192058,21.47131716,85.179,85.091,19.86168588]
[1772806192259,10.57,85.15,85.08,8.98402229]
[1772806192455,21.47131716,85.154,85.081,19.86168588]
[1772806193159,21.47131716,85.154,85.06,8.98402229]
[1772806193355,21.47131716,85.126,85.064,19.86168588]
[1772806193552,21.47131716,85.126,85.009,19.86168588]
[1772806193553,8.98402229,85.12,85.009,19.86168588]
[1772806193750,21.137,85.163,84.933,216.52215123]
[1772806193751,21.47131716,85.099,85.0,19.86168588]
[1772806193952,21.47131716,85.099,85.001,19.86168588]
[1772806194153,21.47131716,85.09,85.001,19.86168588]
[1772806194351,21.47131716,85.114,85.021,19.86168588]
[1772806194952,21.47131716,85.114,84.987,2.04592153]
[1772806194953,20.07801223,85.099,85.008,10.587]
[1772806195154,20.07801223,85.089,85.011,21.86741097]
[1772806195354,20.07801223,85.089,85.02,8.98402229]
[1772806195653,20.07801223,85.089,85.021,21.86741097]
[1772806196154,20.07801223,85.089,85.001,21.86741097]
[1772806196457,263.06802896,85.129,84.941,21.86741097]
[1772806196458,20.07801223,85.049,84.941,21.86741097]
[1772806196652,23.0,85.088,84.941,21.86741097]
[1772806196653,20.07801223,85.029,84.941,21.86741097]
[1772806197155,20.07801223,85.029,84.894,21.86741097]
[1772806197453,20.07801223,85.012,84.931,21.86741097]
[1772806197658,20.07801223,85.012,84.941,21.86741097]
[1772806198750,20.07801223,85.034,84.961,21.86741097]
[1772806199052,20.07801223,85.109,85.02,8.98402229]
[1772806199658,20.07801223,85.109,85.0,8.98402229]
[1772806199857,20.07801223,85.079,85.0,8.98402229]
[1772806200258,20.07801223,85.079,84.985,21.86741097]
[1772806200457,20.07801223,85.079,84.98,8.98402229]
[1772806200458,20.07801223,85.079,85.001,21.86741097]
[1772806200857,20.07801223,85.029,84.955,21.86741097]
[1772806201452,20.07801223,85.055,84.961,21.86741097]
[1772806202355,21.52509915,85.119,84.981,21.74233589]
[1772806202763,21.137,85.161,84.981,21.74233589]
[1772806202764,21.52509915,85.109,84.981,21.74233589]
[1772806203458,21.52509915,85.073,84.997,10.589]
[1772806203654,21.52509915,85.073,84.981,21.74233589]
[1772806204550,21.52509915,85.073,84.941,299.0]
[1772806204551,21.52509915,85.073,84.942,21.74233589]
[1772806204956,21.52509915,85.05,84.961,32.33533589]
[1772806205154,21.52509915,85.05,84.962,21.74233589]
[1772806207364,21.52509915,85.05,84.941,21.74233589]
[1772806207768,21.52509915,85.048,84.948,10.595]
[1772806208060,21.52509915,85.048,84.949,21.74233589]
[1772806208764,21.52509915,85.046,84.94,21.78715217]
[1772806208966,21.52509915,85.046,84.913,21.74233589]
[1772806209160,21.156,85.086,84.834,21.218]
[1772806209161,21.52509915,85.013,84.927,21.74233589]
[1772806209662,21.52509915,85.013,84.93,21.78715217]
[1772806209861,21.52509915,85.013,84.894,21.74233589]
[1772806210064,21.52509915,85.013,84.911,21.74233589]
[1772806210265,21.52509915,85.01,84.931,6.277]
[1772806210465,21.52509915,85.01,84.932,21.74233589]
[1772806211061,21.52509915,85.01,84.934,10.596]
[1772806211266,21.52509915,85.01,84.95,21.78715217]
[1772806211663,21.52509915,85.01,84.935,21.74233589]
[1772806212061,21.52509915,85.01,84.941,21.74233589]
[1772806212463,21.52509915,85.039,84.961,21.74233589]
[1772806212763,21.147,85.122,84.981,21.74233589]
[1772806212764,21.52509915,85.109,84.981,21.74233589]
[1772806213169,21.52509915,85.08,84.984,10.59]
[1772806213358,21.52509915,85.08,85.0,21.78715217]
[1772806213564,21.52509915,85.079,84.929,21.74233589]
[1772806213861,164.458,85.132,84.869,187.9]
[1772806213862,21.52509915,85.069,84.931,21.74233589]
[1772806214166,21.52509915,85.05,84.931,21.74233589]
[1772806215365,21.52509915,85.049,84.97,21.78715217]
[1772806215764,21.52509915,85.049,84.99,21.78715217]
[1772806216772,21.52509915,85.049,84.971,21.74233589]
[1772806217469,21.52509915,85.049,84.915,21.74233589]
[1772806217662,164.486,85.118,84.915,21.74233589]
[1772806217663,21.52509915,84.987,84.915,21.74233589]
[1772806218370,21.52509915,84.987,84.902,10.6]
[1772806218565,21.52509915,84.987,84.893,21.76308053]
[1772806218967,21.52509915,84.971,84.893,21.76308053]
[1772806219470,21.52509915,84.971,84.894,21.74233589]
[1772806220165,21.52509915,84.971,84.901,21.74233589]
[1772806220364,21.52509915,84.971,84.905,21.74233589]
[1772806220563,21.52509915,84.971,84.92,9.06283783]
[1772806220973,21.52509915,84.971,84.905,21.74233589]
[1772806221164,21.52509915,84.994,84.94,9.06283783]
[1772806221363,21.52509915,84.994,84.893,21.76308053]
[1772806221364,21.52509915,84.994,84.93,9.06283783]
[1772806221568,21.52509915,84.994,84.91,9.06283783]
[1772806221872,9.06283783,85.05,84.91,9.06283783]
[1772806221873,21.52509915,84.992,84.91,9.06283783]
[1772806222372,21.52509915,84.987,84.92,9.06283783]
[1772806223671,21.52509915,84.985,84.893,21.76308053]
[1772806223870,21.52509915,84.985,84.9,9.06283783]
[1772806224267,21.52509915,84.959,84.9,9.06283783]
[1772806224570,21.52509915,84.959,84.893,21.76308053]
[1772806224765,21.52509915,84.959,84.789,21.23]
[1772806224766,21.52509915,84.959,84.85,9.06283783]
[1772806224966,9.06283783,84.96,84.86,9.06283783]
[1772806225173,21.52509915,84.959,84.861,21.74233589]
[1772806225476,21.52509915,84.942,84.861,21.74233589]
[1772806226070,21.52509915,84.94,84.86,9.06283783]
[1772806226276,21.52509915,84.94,84.88,9.06283783]
[1772806226677,21.52509915,84.94,84.865,10.605]
[1772806226876,21.52509915,84.94,84.86,9.06283783]
[1772806227073,21.52509915,84.94,84.839,21.74233589]
[1772806227281,21.52509915,84.917,84.85,9.06283783]
[1772806227776,21.52509915,84.915,84.85,9.06283783]
[1772806228170,21.52509915,84.936,84.872,10.604]
[1772806228370,10.20373021,85.07,84.813,2.04989854]
[1772806228371,21.52509915,84.958,84.891,21.74233589]
[1772806228580,21.52509915,84.958,84.84,9.06283783]
[1772806228581,21.52509915,84.989,84.93,9.06283783]
[1772806228775,21.52509915,85.029,84.931,21.74233589]
[1772806228974,21.52509915,85.029,84.95,9.06283783]
[1772806229575,10.586,85.018,84.951,32.33633589]
[1772806230676,21.52509915,85.029,84.97,10.592]
[1772806230870,21.52509915,85.029,84.97,9.06283783]
[1772806231071,21.52509915,85.079,84.971,21.74233589]
[1772806231275,10.581,85.061,84.99,9.06283783]
[1772806231475,10.581,85.061,84.99,30.80517372]
[1772806231675,21.52509915,85.079,84.991,21.18281053]
[1772806232076,21.52509915,85.079,85.01,19.64983783]
[1772806232477,20.26322803,85.128,85.011,21.18281053]
[1772806232680,20.26322803,85.09,85.011,21.18281053]
[1772806233080,20.26322803,85.09,85.029,10.585]
[1772806233278,20.26322803,85.1,85.026,0.02020279]
[1772806233880,20.26322803,85.098,85.026,0.02020279]
[1772806234686,20.26322803,85.098,85.027,21.18281053]
[1772806235089,20.26322803,85.12,85.027,21.18281053]
[1772806235290,10.575,85.11,85.037,10.584]
[1772806235687,10.575,85.11,85.027,21.18281053]
[1772806235993,20.26322803,85.105,85.031,10.584]
[1772806236189,20.26322803,85.105,85.027,21.18281053]
[1772806236390,20.26322803,85.128,85.031,21.18281053]
[1772806237289,20.26322803,85.104,85.026,0.02020279]
[1772806237691,20.26322803,85.128,85.031,21.18281053]
[1772806237892,20.26322803,85.128,85.026,0.02020279]
[1772806237893,20.26322803,85.128,85.068,10.58]
[1772806238092,20.26322803,85.128,85.055,21.18281053]
[1772806238292,20.26322803,85.128,85.03,21.75148975]
[1772806238293,20.26322803,85.128,85.031,21.18281053]
[1772806239992,10.574,85.115,85.031,21.18281053]
[1772806240201,20.26322803,85.128,85.031,21.18281053]
[1772806240399,20.26322803,85.128,85.026,0.02020279]
[1772806240600,20.26322803,85.09,85.026,0.02020279]
[1772806240990,20.26322803,85.09,84.986,21.18281053]
[1772806241190,10.583,85.043,84.986,21.18281053]
[1772806241397,20.26322803,85.058,84.963,21.18281053]
[1772806242702,21.155,85.089,84.93,21.75148975]
[1772806242703,20.26322803,85.024,84.94,21.18281053]
[1772806243099,10.586,85.016,84.952,10.594]
[1772806243904,10.586,85.016,84.941,10.596]
[1772806244205,20.26322803,85.024,84.94,21.18281053]
[1772806244499,20.26322803,85.059,84.951,21.18281053]
[1772806244695,10.587,85.008,84.951,21.18281053]
[1772806245496,20.26322803,85.037,84.951,21.18281053]
[1772806246101,20.26322803,85.037,84.95,21.75148975]
[1772806246102,10.585,85.027,84.962,31.77581053]
[1772806246305,10.585,85.027,84.962,21.18281053]
[1772806246702,20.26322803,85.056,84.966,21.18281053]
[1772806246897,20.26322803,85.056,84.884,299.0]
[1772806246898,20.26322803,85.056,84.931,21.18281053]
[1772806247102,20.26322803,85.039,84.931,21.18281053]
[1772806247401,20.26322803,85.003,84.931,21.18281053]
[1772806247902,20.26322803,85.003,84.933,10.597]
[1772806248209,20.26322803,85.003,84.931,21.18281053]
[1772806248408,20.26322803,85.039,84.931,21.18281053]
[1772806248804,10.587,85.011,84.943,10.595]
[1772806249004,20.26322803,85.039,84.943,21.18281053]
[1772806250610,10.588,85.005,84.945,10.595]
[1772806251205,10.586,85.016,84.95,21.18281053]
[1772806252003,10.585,85.025,84.956,10.594]
[1772806252203,10.585,85.025,84.956,31.77681053]
[1772806252509,10.585,85.025,84.96,9.05468123]
[1772806252708,20.26322803,85.039,84.957,21.18281053]
[1772806253198,20.26322803,85.039,84.991,0.02103259]
[1772806253398,10.585,85.025,84.991,0.02103259]
[1772806253706,20.26322803,85.039,84.991,0.02103259]
[1772806253908,20.26322803,85.039,84.95,9.05468123]
[1772806254108,20.26322803,85.029,84.935,21.18281053]
[1772806255001,10.586,85.019,84.96,10.593]
[1772806255203,20.26322803,85.029,84.96,10.593]
[1772806255499,10.587,85.011,84.951,10.594]
[1772806255806,20.26322803,85.029,84.951,10.594]
[1772806256209,10.587,85.011,84.951,10.594]
[1772806256508,20.26322803,85.029,84.96,20.55661846]
[1772806256710,10.586,85.021,84.96,20.55661846]
[1772806257208,10.588,85.004,84.947,10.595]
[1772806257409,20.26322803,85.029,84.941,20.55661846]
[1772806258411,21.37463946,85.049,84.963,20.55661846]
[1772806258812,21.37463946,85.049,84.981,20.55661846]
[1772806259109,10.583,85.039,84.984,10.59]
[1772806259318,21.37463946,85.079,84.985,20.55661846]
[1772806259910,21.37463946,85.079,85.001,20.55661846]
[1772806260817,10.58,85.069,85.017,10.586]
[1772806261017,10.58,85.069,85.001,20.55661846]
[1772806261018,21.37463946,85.079,85.001,20.55661846]
[1772806261212,21.37463946,85.055,84.981,20.55661846]
[1772806261410,21.37463946,85.055,84.961,20.55661846]
[1772806261614,21.37463946,85.039,84.961,20.55661846]
[1772806261823,21.37463946,85.039,84.961,31.14961846]
[1772806262226,21.37463946,85.039,84.961,20.55661846]
[1772806262514,20.23197119,85.064,84.981,21.93449289]
[1772806262716,20.23197119,85.081,85.0,9.05468123]
[1772806263917,20.23197119,85.079,84.981,21.93449289]
[1772806264324,10.584,85.031,84.972,10.592]
[1772806265323,20.23197119,85.043,84.973,21.93449289]
[1772806265923,10.583,85.041,84.973,32.52649289]
[1772806266322,20.23197119,85.043,84.973,21.93449289]
[1772806266719,20.23197119,85.043,84.98,30.98917412]
[1772806267024,20.23197119,85.043,84.98,21.93449289]
[1772806267420,20.23197119,85.043,84.981,10.591]
[1772806267719,9.05468123,85.09,84.99,9.05468123]
[1772806268022,10.58,85.068,84.991,21.93449289]
[1772806268415,20.23197119,85.089,84.991,21.93449289]
[1772806268620,20.23197119,85.07,84.991,21.93449289]
[1772806269913,20.23197119,85.07,84.993,21.93449289]
[1772806270321,20.23197119,85.07,85.0,9.05468123]
[1772806270520,20.23197119,85.07,85.0,9.0457023]
[1772806270719,20.23197119,85.099,85.005,21.93449289]
[1772806271023,20.23197119,85.099,84.98,9.0457023]
[1772806271024,20.23197119,85.099,85.021,21.93449289]
[1772806272024,20.23197119,85.099,85.022,21.93449289]
[1772806272525,20.23197119,85.099,85.019,10.586]
[1772806273120,20.23197119,85.07,84.998,21.93449289]
[1772806273827,20.23197119,85.07,84.999,10.588]
[1772806274019,20.23197119,85.07,84.998,21.93449289]
[1772806274224,10.583,85.043,84.998,21.93449289]
[1772806274726,10.583,85.043,84.991,10.589]
[1772806274920,10.583,85.043,84.99,9.0457023]
[1772806275724,20.23197119,85.07,84.979,32.52549289]
[1772806276324,20.23197119,85.051,84.979,21.93449289]
[1772806276526,20.23197119,85.051,84.959,21.93449289]
[1772806277225,10.585,85.024,84.96,10.593]
[1772806277828,10.585,85.024,84.968,10.592]
[1772806278030,10.586,85.016,84.959,21.93449289]
[1772806278432,20.23197119,85.032,84.959,21.93449289]
[1772806278932,20.23197119,85.032,84.95,9.0457023]
[1772806279133,20.23197119,85.032,84.951,21.93449289]
[1772806279338,20.23197119,85.032,84.97,30.98019519]
[1772806279830,20.23197119,85.03,84.97,9.0457023]
[1772806280128,20.23197119,85.019,84.931,21.93449289]
[1772806280434,10.586,85.016,84.964,10.593]
[1772806280630,20.23197119,85.019,84.951,21.93449289]
[1772806280822,20.23197119,85.049,84.951,21.93449289]
[1772806281132,20.23197119,85.027,84.955,10.594]
[1772806281329,20.23197119,85.027,84.951,21.93449289]
[1772806282027,10.588,85.004,84.952,10.594]
[1772806282225,20.23197119,85.027,84.94,9.0457023]
[1772806282423,21.164,85.054,84.931,21.93449289]
[1772806282424,20.23197119,85.019,84.931,21.93449289]
[1772806283125,10.589,84.996,84.934,21.93449289]
[1772806283526,20.23197119,85.019,84.934,21.93449289]
[1772806283527,20.23197119,85.019,84.94,9.0457023]
[1772806283727,10.588,85.005,84.947,10.595]
[1772806284222,20.23197119,85.019,84.941,21.93449289]
[1772806284427,10.589,84.998,84.942,10.595]
[1772806284935,10.589,84.998,84.942,32.52949289]
[1772806285234,20.23197119,85.019,84.95,9.0457023]
[1772806285431,20.23197119,85.019,84.951,21.93449289]
[1772806285732,10.588,85.002,84.951,21.93449289]
[1772806285932,20.23197119,85.019,84.951,21.93449289]
[1772806287135,10.589,84.996,84.951,21.93449289]
[1772806287337,20.23197119,85.019,84.951,21.93449289]
[1772806288340,20.23197119,85.019,84.931,21.93449289]